bitfinex-derivatives/quotes_BTCF0:USTF0_20250313
["timestamp","ask_amount","ask_price","bid_price","bid_amount"]
[1741887615694,0.00118713,80187.0,80186.0,0.137027]
[1741887616394,0.00118713,80187.0,80186.0,0.15123329]
[1741887616597,0.00018713,80187.0,80186.0,0.15123329]
[1741887616907,0.00018713,80187.0,80186.0,0.31064435]
[1741887617095,0.00018713,80187.0,80186.0,0.47984435]
[1741887617704,0.12491803,80187.0,80186.0,0.47984435]
[1741887618100,0.12491803,80187.0,80186.0,0.02661195]
[1741887618609,0.12791803,80187.0,80186.0,0.01420629]
[1741887618802,0.12791803,80187.0,80186.0,0.01225145]
[1741887619102,0.1247402,80181.0,80180.0,0.3188]
[1741887619308,0.1247402,80181.0,80180.0,0.33105167]
[1741887619497,0.1247402,80181.0,80180.0,0.34509999]
[1741887620098,0.1247402,80181.0,80180.0,0.50863999]
[1741887620299,0.1257402,80181.0,80180.0,0.50863999]
[1741887620608,0.001,80181.0,80180.0,0.63342176]
[1741887621804,0.003,80181.0,80180.0,0.63342176]
[1741887622005,0.003,80181.0,80180.0,0.50867996]
[1741887622207,0.003,80181.0,80180.0,0.63342176]
[1741887623305,0.1277402,80181.0,80180.0,0.18987996]
[1741887623499,0.1277402,80181.0,80180.0,0.16354]
[1741887624114,0.4627402,80181.0,80180.0,0.16354]
[1741887624406,0.4627402,80181.0,80157.0,0.15196]
[1741887624407,0.124776,80158.0,80157.0,0.15196]
[1741887624605,0.0623852,80162.0,80157.0,0.1247776]
[1741887624803,0.1247749,80159.0,80158.0,0.453876]
[1741887625109,0.1247749,80159.0,80158.0,0.1628]
[1741887625499,0.124786,80152.0,80150.0,0.15196]
[1741887625697,0.119786,80152.0,80151.0,0.1247869]
[1741887625902,0.119786,80152.0,80151.0,0.1647869]
[1741887626102,0.119786,80152.0,80151.0,0.04]
[1741887626304,0.119786,80152.0,80149.0,0.00187131]
[1741887626498,0.1207885,80150.0,80149.0,0.00187131]
[1741887627211,0.4811,80151.0,80139.0,0.3162]
[1741887627400,0.1247978,80144.0,80139.0,0.3162]
[1741887627708,0.1248036,80141.0,80139.0,0.4410056]
[1741887628006,0.124804,80140.0,80139.0,0.4410056]
[1741887628303,0.278404,80140.0,80139.0,0.3162]
[1741887628700,0.278404,80140.0,80139.0,0.1628]
[1741887628902,0.278404,80140.0,80139.0,0.002]
[1741887630000,0.1248165,80132.0,80131.0,0.1695]
[1741887630200,0.0624043,80138.0,80131.0,0.6149]
[1741887630399,0.0624061,80135.0,80131.0,0.739717]
[1741887630596,0.0624043,80138.0,80131.0,0.739717]
[1741887630597,0.1638,80134.0,80131.0,0.739717]
[1741887630802,0.1638,80134.0,80133.0,0.1248149]
[1741887631110,0.007,80140.0,80139.0,0.1248056]
[1741887631309,0.007,80140.0,80130.0,0.18124405]
[1741887631509,0.004,80140.0,80139.0,0.1248056]
[1741887631805,0.01304542,80158.0,80147.0,0.1247931]
[1741887632012,0.00164,80169.0,80168.0,0.1247605]
[1741887632308,0.1612,80185.0,80168.0,0.1247605]
[1741887632309,0.01267357,80192.0,80173.0,0.1247527]
[1741887632512,0.1566,80184.0,80183.0,0.1247371]
[1741887632697,0.1684,80185.0,80183.0,0.12266589]
[1741887632902,0.1684,80185.0,80184.0,0.1247356]
[1741887633213,0.1684,80185.0,80180.0,0.163]
[1741887633214,0.1247402,80181.0,80180.0,0.163]
[1741887633409,0.1604,80184.0,80180.0,0.163]
[1741887633614,0.2931371,80183.0,80182.0,0.1247375]
[1741887633914,0.1684,80183.0,80182.0,0.1247375]
[1741887634109,0.1684,80183.0,80177.0,0.0623725]
[1741887634310,0.1684,80183.0,80179.0,0.1247426]
[1741887634511,0.124743,80180.0,80177.0,0.1247459]
[1741887634710,0.2227697,80182.0,80177.0,0.1247454]
[1741887634711,0.1673,80179.0,80177.0,0.1247454]
[1741887634903,0.1673,80179.0,80178.0,0.01214153]
[1741887635104,0.005,80184.0,80183.0,0.1247371]
[1741887635303,0.1604,80190.0,80189.0,0.1247278]
[1741887635599,0.2851262,80190.0,80188.0,0.1247289]
[1741887635905,0.2851262,80190.0,80176.0,0.01297796]
[1741887635906,0.1604,80190.0,80176.0,0.01297796]
[1741887636107,0.005,80179.0,80177.0,0.01229577]
[1741887636313,0.005,80179.0,80178.0,0.26178517]
[1741887636609,0.1297433,80179.0,80178.0,0.01229577]
[1741887636811,0.1297433,80179.0,80178.0,0.0264163]
[1741887637110,0.1297433,80179.0,80178.0,0.02641762]
[1741887637303,0.1247465,80177.0,80176.0,0.00018713]
[1741887637503,0.3108,80178.0,80177.0,0.1247465]
[1741887637704,0.005,80179.0,80178.0,0.1247449]
[1741887637904,0.005,80179.0,80178.0,0.19704082]
[1741887638100,0.005,80179.0,80178.0,0.13704082]
[1741887638306,0.005,80190.0,80181.0,0.0623694]
[1741887638508,0.011,80190.0,80189.0,0.1247278]
[1741887638709,0.011,80190.0,80189.0,0.13702372]
[1741887638911,0.00018713,80192.0,80189.0,0.01229592]
[1741887639219,0.0623627,80191.0,80190.0,0.01248275]
[1741887639515,0.2179627,80191.0,80190.0,0.01248275]
[1741887639705,0.2179627,80191.0,80187.0,0.1247302]
[1741887639706,0.1247293,80188.0,80185.0,0.1247331]
[1741887639902,0.1247293,80188.0,80186.0,0.13706092]
[1741887640103,0.1247293,80188.0,80187.0,0.01232922]
[1741887640303,0.1247293,80188.0,80187.0,0.05232922]
[1741887640915,0.1725,80190.0,80187.0,0.05232922]
[1741887641116,0.1247278,80189.0,80188.0,0.01232922]
[1741887641310,0.1725,80190.0,80188.0,0.05232922]
[1741887641509,0.005,80190.0,80189.0,0.01229271]
[1741887641705,0.1887093,80210.0,80189.0,0.50421271]
[1741887641905,0.1887093,80210.0,80201.0,0.1247091]
[1741887642220,0.1887093,80210.0,80209.0,0.1246967]
[1741887642419,0.21992651,80214.0,80209.0,0.15698941]
[1741887642714,0.1591,80212.0,80211.0,0.1246924]
[1741887642907,0.283792,80212.0,80211.0,0.01229271]
[1741887643109,0.1591,80212.0,80211.0,0.02641384]
[1741887643316,0.1591,80212.0,80211.0,0.13881473]
[1741887643514,0.1591,80212.0,80211.0,0.15103577]
[1741887643712,0.22492651,80214.0,80213.0,0.1246905]
[1741887643914,0.22492651,80214.0,80213.0,0.54883673]
[1741887644220,0.22492651,80214.0,80213.0,0.57295786]
[1741887644421,0.22492651,80214.0,80213.0,0.69762826]
[1741887645608,0.1887093,80217.0,80216.0,0.1246858]
[1741887645807,0.1887093,80217.0,80216.0,0.30691203]
[1741887646013,0.69912464,80228.0,80219.0,0.1246811]
[1741887646014,1e-08,80220.0,80219.0,0.1246811]
[1741887646208,0.1661,80239.0,80219.0,0.54261069]
[1741887646410,0.290751,80239.0,80232.0,0.1246599]
[1741887646612,0.1246578,80234.0,80233.0,0.15188]
[1741887646819,0.1246555,80236.0,80233.0,0.19188]
[1741887647123,0.1246578,80234.0,80233.0,0.19188]
[1741887647624,0.4597578,80234.0,80233.0,0.19188]
[1741887647919,0.4597578,80234.0,80233.0,0.04]
[1741887648325,0.3351,80234.0,80233.0,0.1646594]
[1741887648715,0.4597578,80234.0,80233.0,0.04]
[1741887649214,0.4637578,80234.0,80233.0,0.04]
[1741887649419,0.1246687,80227.0,80226.0,0.00018701]
[1741887649919,0.13767273,80227.0,80226.0,0.00018701]
[1741887650110,0.1246687,80227.0,80226.0,0.00018701]
[1741887650313,0.4680687,80227.0,80226.0,0.00018701]
[1741887651113,0.4690687,80227.0,80226.0,0.00018701]
[1741887651522,0.3444,80227.0,80213.0,0.1621]
[1741887651714,0.1246741,80224.0,80220.0,0.1246792]
[1741887652022,0.3474,80227.0,80214.0,0.2972883]
[1741887652023,0.3453,80223.0,80219.0,0.1621]
[1741887652223,0.3453,80223.0,80221.0,0.1246775]
[1741887652413,0.3453,80223.0,80216.0,0.1246857]
[1741887652616,0.1246836,80218.0,80216.0,0.4619857]
[1741887652811,0.4709842,80217.0,80214.0,0.00018701]
[1741887653116,0.4709842,80217.0,80160.0,0.18124405]
[1741887653117,0.35891194,80217.0,80188.0,0.18907825]
[1741887653323,0.1247214,80194.0,80191.0,0.1247246]
[1741887653519,0.18124405,80210.0,80191.0,0.1647246]
[1741887653520,0.2946219,80193.0,80191.0,0.1647246]
[1741887653723,0.1699,80193.0,80192.0,0.2868231]
[1741887653925,0.1699,80193.0,80192.0,0.5020231]
[1741887654612,0.00018701,80201.0,80199.0,0.1247114]
[1741887654927,0.1678,80199.0,80198.0,0.1247138]
[1741887655118,0.00018701,80201.0,80200.0,0.1247107]
[1741887655317,0.00018701,80201.0,80198.0,0.4098562]
[1741887655318,0.00018701,80201.0,80198.0,0.4722127]
[1741887655519,0.1247108,80200.0,80198.0,0.3475]
[1741887655727,0.1678,80199.0,80198.0,0.3475]
[1741887655921,0.0623569,80198.0,80192.0,0.1644774]
[1741887656224,0.0623569,80198.0,80193.0,0.1723]
[1741887656529,0.3429,80197.0,80196.0,0.1247169]
[1741887657225,0.3429,80197.0,80196.0,0.3388]
[1741887657425,0.3429,80197.0,80196.0,0.4635169]
[1741887658010,0.3429,80197.0,80196.0,0.47613885]
[1741887658812,0.3449,80197.0,80196.0,0.35142195]
[1741887659026,0.3449,80197.0,80196.0,0.51613885]
[1741887659228,0.3459,80197.0,80196.0,0.51617795]
[1741887659528,0.003,80197.0,80196.0,0.53643533]
[1741887659716,0.003,80197.0,80196.0,0.51617795]
[1741887660119,0.003,80197.0,80196.0,0.22496105]
[1741887660418,0.1655,80197.0,80184.0,0.00018685]
[1741887660620,0.1247293,80188.0,80187.0,0.20445709]
[1741887660814,0.1624,80196.0,80188.0,0.0623646]
[1741887661020,0.1624,80196.0,80195.0,0.1247185]
[1741887661327,0.1624,80196.0,80195.0,0.15749455]
[1741887661530,0.2871169,80196.0,80195.0,0.03277605]
[1741887661824,0.2871169,80196.0,80195.0,0.15754581]
[1741887661825,0.1624,80196.0,80195.0,0.15754581]
[1741887662124,0.1624,80196.0,80195.0,0.22754581]
[1741887662424,0.1634,80196.0,80195.0,0.15754581]
[1741887662820,0.1634,80196.0,80195.0,0.48934581]
[1741887663021,0.1624,80196.0,80195.0,0.48934581]
[1741887663322,0.1634,80196.0,80195.0,0.48934581]
[1741887663523,0.1634,80196.0,80195.0,0.49034581]
[1741887663724,0.1624,80196.0,80195.0,0.49134581]
[1741887664028,0.2871169,80196.0,80195.0,0.03482731]
[1741887664422,0.2871169,80196.0,80195.0,0.0146757]
[1741887664626,0.124734,80185.0,80184.0,0.00018685]
[1741887664932,0.124734,80185.0,80184.0,0.07309828]
[1741887665436,0.124734,80185.0,80167.0,0.29615412]
[1741887665437,0.15,80185.0,80167.0,0.29615412]
[1741887665623,0.1247496,80175.0,80167.0,0.29615412]
[1741887665816,0.2755496,80175.0,80167.0,0.29615412]
[1741887666123,0.3435,80174.0,80162.0,0.37243746]
[1741887666329,0.1247682,80163.0,80162.0,0.37243746]
[1741887666527,0.124776,80158.0,80157.0,0.44194763]
[1741887667122,0.12491119,80158.0,80157.0,0.44194763]
[1741887667434,0.01282176,80158.0,80157.0,0.4563067]
[1741887667631,0.00013519,80158.0,80157.0,0.5810843]
[1741887667830,0.12491119,80158.0,80157.0,0.4563067]
[1741887668129,0.12491119,80158.0,80157.0,0.56672523]
[1741887668332,0.00013519,80158.0,80157.0,0.56672523]
[1741887668529,0.00013519,80158.0,80157.0,0.91032523]
[1741887668928,0.00013519,80158.0,80157.0,0.91132523]
[1741887669126,0.17043519,80158.0,80157.0,0.91132523]
[1741887669334,0.17043519,80158.0,80157.0,0.3446]
[1741887669335,0.45521119,80158.0,80157.0,0.3446]
[1741887669531,0.45521119,80158.0,80157.0,0.001]
[1741887669829,0.33043519,80158.0,80157.0,0.1257776]
[1741887670028,0.17043519,80158.0,80157.0,0.1257776]
[1741887670530,0.17043519,80158.0,80157.0,0.001]
[1741887670730,0.29521119,80158.0,80157.0,0.1766]
[1741887670924,0.29521119,80158.0,80157.0,0.001]
[1741887671924,0.0623978,80146.0,80139.0,0.02046576]
[1741887672125,0.1248025,80141.0,80140.0,0.1756]
[1741887672333,0.3447,80145.0,80140.0,0.1756]
[1741887672534,0.00018713,80151.0,80140.0,0.1756]
[1741887672832,0.1729,80150.0,80141.0,0.1731]
[1741887673035,0.0623969,80147.0,80141.0,0.1731]
[1741887673225,0.124797,80145.0,80141.0,0.1731]
[1741887673431,0.124797,80145.0,80142.0,0.31508739]
[1741887673633,0.68876,80170.0,80144.0,0.0623989]
[1741887673934,0.18278034,80190.0,80145.0,0.61955773]
[1741887674138,0.18278034,80190.0,80189.0,0.1247278]
[1741887674337,0.18278034,80190.0,80189.0,0.0207782]
[1741887674534,0.18278034,80190.0,80186.0,0.1518]
[1741887674728,0.18278034,80190.0,80187.0,0.3342]
[1741887674936,0.1247293,80188.0,80187.0,0.4731]
[1741887675538,0.18278034,80190.0,80187.0,0.50890469]
[1741887675741,0.005,80190.0,80188.0,0.14571548]
[1741887675935,0.005,80190.0,80189.0,0.19408728]
[1741887676335,0.005,80190.0,80189.0,0.46074469]
[1741887676640,0.005,80190.0,80189.0,0.60908572]
[1741887677533,0.14600701,80195.0,80191.0,0.0623621]
[1741887677733,0.14600701,80195.0,80192.0,0.36678515]
[1741887677937,0.1247216,80193.0,80192.0,0.333]
[1741887678136,0.14600701,80195.0,80194.0,0.12472]
[1741887678342,0.14600701,80195.0,80194.0,0.1373677]
[1741887678532,0.00018713,80196.0,80194.0,0.15761256]
[1741887678732,0.00018713,80196.0,80195.0,0.4703662]
[1741887678936,0.00018713,80196.0,80195.0,0.54531392]
[1741887679343,0.00018713,80196.0,80195.0,0.5683161]
[1741887679738,0.12490403,80196.0,80195.0,0.4035976]
[1741887679943,0.12490403,80196.0,80195.0,0.38346729]
[1741887680140,0.00018713,80196.0,80195.0,0.4903662]
[1741887680343,0.00018713,80196.0,80195.0,0.5503662]
[1741887680640,0.00018713,80196.0,80195.0,0.53152183]
[1741887680840,0.00118713,80196.0,80195.0,0.53152183]
[1741887681045,0.00118713,80196.0,80195.0,0.49152183]
[1741887681341,0.12590403,80196.0,80195.0,0.40412911]
[1741887681544,0.12590403,80196.0,80195.0,0.23985239]
[1741887681545,0.12490403,80196.0,80195.0,0.23985239]
[1741887681740,0.12490403,80196.0,80195.0,0.22028206]
[1741887681948,0.12490403,80196.0,80195.0,0.01635607]
[1741887682246,0.46170403,80196.0,80195.0,0.02799109]
[1741887682435,0.46270403,80196.0,80195.0,0.01263502]
[1741887683438,0.46270403,80196.0,80195.0,0.01263273]
[1741887683945,0.46170403,80196.0,80195.0,0.01263273]
[1741887684143,0.46270403,80196.0,80195.0,0.01263273]
[1741887684539,0.17598713,80196.0,80195.0,0.13735123]
[1741887685047,0.00118713,80196.0,80195.0,0.1678736]
[1741887685346,0.00018713,80196.0,80195.0,0.5465736]
[1741887685547,0.00118713,80196.0,80195.0,0.58443194]
[1741887685843,0.00118713,80196.0,80195.0,0.41971344]
[1741887686238,0.00118713,80196.0,80195.0,0.54443194]
[1741887686844,0.00118713,80196.0,80195.0,0.41971344]
[1741887687043,0.00118713,80196.0,80195.0,0.54543194]
[1741887687244,0.00018713,80196.0,80195.0,0.54738684]
[1741887687543,0.00018713,80196.0,80195.0,0.42166834]
[1741887687741,0.12490403,80196.0,80195.0,0.07296834]
[1741887687947,0.12490403,80196.0,80195.0,0.00491865]
[1741887688148,0.1247293,80188.0,80187.0,0.1671]
[1741887688346,0.1247251,80191.0,80187.0,0.61287076]
[1741887688546,0.1647,80189.0,80188.0,0.18954066]
[1741887688756,0.1647,80189.0,80188.0,0.61664066]
[1741887688947,0.2894278,80189.0,80188.0,0.61664066]
[1741887689136,0.1647,80189.0,80188.0,0.61664066]
[1741887689339,0.1647,80189.0,80188.0,0.74136996]
[1741887689538,0.2894278,80189.0,80188.0,0.61664066]
[1741887689946,0.2894278,80189.0,80180.0,0.00018713]
[1741887689947,0.1647,80189.0,80180.0,0.00018713]
[1741887690134,0.1247402,80181.0,80180.0,0.24981287]
[1741887690340,0.13720683,80181.0,80180.0,0.24981287]
[1741887692341,0.13920683,80181.0,80180.0,0.24981287]
[1741887693136,0.47030683,80181.0,80180.0,0.24981287]
[1741887693338,0.47030683,80181.0,80169.0,0.1668]
[1741887693339,0.62030683,80181.0,80169.0,0.1668]
[1741887693543,0.1247573,80170.0,80169.0,0.4068]
[1741887694355,0.4482573,80170.0,80169.0,0.4068]
[1741887695153,0.00216,80181.0,80177.0,0.1247465]
[1741887695352,0.001,80181.0,80180.0,0.1247418]
[1741887695554,0.1247192,80195.0,80187.0,0.1247309]
[1741887695851,0.1676,80196.0,80187.0,0.3947309]
[1741887696055,0.22002886,80197.0,80187.0,0.53746686]
[1741887696250,0.22002886,80197.0,80191.0,0.1247247]
[1741887696553,0.22002886,80197.0,80191.0,0.3164447]
[1741887696554,0.16778713,80196.0,80191.0,0.3164447]
[1741887696941,0.16778713,80196.0,80191.0,0.06]
[1741887697147,0.00018713,80196.0,80192.0,0.0623612]
[1741887697356,0.00018713,80196.0,80195.0,0.1247185]
[1741887697657,0.00018713,80196.0,80195.0,0.2247185]
[1741887698356,0.00018713,80196.0,80195.0,0.3764385]
[1741887699754,0.00018713,80196.0,80195.0,0.25172]
[1741887699954,0.12490403,80196.0,80195.0,0.1652]
[1741887700154,0.00018713,80196.0,80195.0,0.17795007]
[1741887700649,0.15998713,80196.0,80195.0,0.34345007]
[1741887701046,0.15998713,80196.0,80195.0,0.01275007]
[1741887701255,0.28470403,80196.0,80195.0,0.01275007]
[1741887701456,0.15998713,80196.0,80195.0,0.01275007]
[1741887701754,0.15998713,80196.0,80195.0,0.13746857]
[1741887701957,0.15998713,80196.0,80195.0,0.17216142]
[1741887702560,0.00018713,80196.0,80195.0,0.33766142]
[1741887702765,0.00018713,80196.0,80195.0,0.33783809]
[1741887703863,0.00018713,80196.0,80195.0,0.17233809]
[1741887704560,0.00018713,80196.0,80195.0,0.17251642]
[1741887704762,0.00018713,80196.0,80195.0,0.39791642]
[1741887704961,0.00018713,80196.0,80195.0,0.56191642]
[1741887706363,0.00018713,80196.0,80195.0,0.58525567]
[1741887706765,0.00018713,80196.0,80195.0,0.36125567]
[1741887706953,0.12490403,80196.0,80195.0,0.02704484]
[1741887707353,0.1376016,80196.0,80195.0,0.02704484]
[1741887707560,0.00018713,80196.0,80195.0,0.02704484]
[1741887707757,0.00018713,80196.0,80195.0,0.22864236]
[1741887708668,0.00018713,80196.0,80195.0,0.55294236]
[1741887709059,0.12490403,80196.0,80195.0,0.05705238]
[1741887709260,0.12490403,80196.0,80195.0,0.02312852]
[1741887709462,0.1247356,80184.0,80183.0,0.287836]
[1741887709660,0.1247356,80184.0,80183.0,0.45608507]
[1741887709863,0.1247356,80184.0,80183.0,0.58082217]
[1741887710359,0.318,80184.0,80183.0,0.60193723]
[1741887710562,0.1676,80184.0,80183.0,0.60193723]
[1741887710759,0.1676,80184.0,80183.0,0.76273723]
[1741887711868,0.00018713,80196.0,80195.0,0.1247185]
[1741887712165,0.00018713,80196.0,80195.0,0.1588803]
[1741887712663,0.00018713,80196.0,80195.0,0.3192803]
[1741887713259,0.00018713,80196.0,80195.0,0.4814803]
[1741887713566,0.12590403,80196.0,80195.0,0.4814803]
[1741887713771,0.17108713,80196.0,80195.0,0.4814803]
[1741887714161,0.17108713,80196.0,80195.0,0.1588803]
[1741887714461,0.12590403,80196.0,80195.0,0.1588803]
[1741887714967,0.00118713,80196.0,80195.0,0.4907803]
[1741887715367,0.00018713,80196.0,80195.0,0.4907803]
[1741887715569,0.00118713,80196.0,80195.0,0.5707803]
[1741887715770,0.00118713,80196.0,80195.0,0.4907803]
[1741887716971,0.00018713,80196.0,80195.0,0.4907803]
[1741887717269,0.00118713,80196.0,80195.0,0.4907803]
[1741887719167,0.12490403,80196.0,80195.0,0.0341618]
[1741887719370,0.00118713,80196.0,80195.0,0.17334866]
[1741887719764,0.12590403,80196.0,80195.0,0.34474866]
[1741887720165,0.00018713,80196.0,80195.0,0.40474866]
[1741887720363,0.00118713,80196.0,80195.0,0.40474866]
[1741887720963,0.00118713,80196.0,80195.0,0.42808933]
[1741887721271,0.01273468,80226.0,80207.0,0.1246998]
[1741887721468,0.34127406,80227.0,80215.0,0.1246874]
[1741887721673,0.34127406,80227.0,80215.0,0.1988492]
[1741887722262,0.34127406,80227.0,80215.0,0.57345823]
[1741887722473,0.00018701,80224.0,80221.0,0.124678]
[1741887722662,0.00018701,80224.0,80221.0,0.39285153]
[1741887722971,0.00018701,80224.0,80221.0,0.40931333]
[1741887723176,0.00018701,80224.0,80221.0,0.44931333]
[1741887723369,0.00018701,80224.0,80221.0,0.36285153]
[1741887723565,0.34470536,80222.0,80221.0,0.2417618]
[1741887723771,0.1246765,80222.0,80221.0,0.2017618]
[1741887723967,0.1714,80223.0,80221.0,0.27957083]
[1741887724168,0.1714,80223.0,80222.0,0.1588383]
[1741887724367,0.1714,80223.0,80222.0,0.3680383]
[1741887724572,0.1714,80223.0,80222.0,0.55010666]
[1741887724771,0.2960749,80223.0,80222.0,0.42543016]
[1741887725278,0.2960749,80223.0,80222.0,0.21705246]
[1741887725476,0.4465749,80223.0,80222.0,0.21705246]
[1741887725877,0.4465749,80223.0,80222.0,0.04945246]
[1741887726171,0.4465749,80223.0,80207.0,0.00018701]
[1741887726172,0.0623434,80216.0,80207.0,0.00018701]
[1741887726368,0.1246932,80212.0,80209.0,0.062348]
[1741887726570,0.4312936,80211.0,80210.0,0.2875951]
[1741887726968,0.44384692,80211.0,80210.0,0.1629]
[1741887727167,0.44384692,80211.0,80210.0,0.2875951]
[1741887727364,0.44384692,80211.0,80210.0,0.1629]
[1741887727563,0.44384692,80211.0,80210.0,0.2875951]
[1741887728065,0.44384692,80211.0,80210.0,0.30882768]
[1741887728270,0.1246982,80208.0,80207.0,0.00018701]
[1741887729071,0.16581478,80208.0,80207.0,0.00018701]
[1741887729582,0.04111658,80208.0,80207.0,0.12488681]
[1741887729773,0.16581478,80208.0,80207.0,0.12488681]
[1741887730074,0.1247216,80193.0,80190.0,0.00187043]
[1741887730375,0.1247216,80193.0,80192.0,0.36961025]
[1741887730576,0.0623599,80195.0,80192.0,0.24495964]
[1741887730776,0.27522,80194.0,80193.0,0.31249171]
[1741887731076,0.27522,80194.0,80193.0,0.1664]
[1741887731575,0.1505,80194.0,80193.0,0.2911216]
[1741887731775,0.12489741,80202.0,80198.0,0.0623566]
[1741887731970,0.1247324,80187.0,80185.0,0.06255341]
[1741887732171,0.1247324,80187.0,80186.0,0.18857138]
[1741887732378,0.1247324,80187.0,80186.0,0.41857138]
[1741887732570,0.1247324,80187.0,80186.0,0.54330378]
[1741887733373,0.13773065,80187.0,80186.0,0.54330378]
[1741887733777,0.1247324,80187.0,80186.0,0.54330378]
[1741887734280,0.1247324,80187.0,80186.0,0.41857138]
[1741887734475,0.1247324,80187.0,80186.0,0.54330378]
[1741887734975,0.1247324,80187.0,80186.0,0.41857138]
[1741887734976,0.13767625,80187.0,80186.0,0.41857138]
[1741887735882,0.1247324,80187.0,80186.0,0.41857138]
[1741887736176,0.11010429,80192.0,80186.0,0.54330378]
[1741887736376,0.23482739,80192.0,80191.0,0.1247247]
[1741887736568,0.23482739,80192.0,80191.0,0.14619608]
[1741887737177,0.23482739,80192.0,80191.0,0.02147138]
[1741887737381,0.23482739,80192.0,80191.0,0.14619608]
[1741887737577,0.23482739,80192.0,80191.0,0.02147138]
[1741887737884,0.23482739,80192.0,80186.0,0.1671]
[1741887737885,0.1247309,80187.0,80186.0,0.1671]
[1741887738079,0.1247309,80187.0,80186.0,0.41040956]
[1741887739174,0.13722836,80187.0,80186.0,0.53514196]
[1741887739487,0.13722836,80187.0,80186.0,0.41040956]
[1741887739677,0.13722836,80187.0,80186.0,0.53514196]
[1741887739883,0.13722836,80187.0,80186.0,0.70474196]
[1741887740674,0.1247309,80187.0,80186.0,0.70474196]
[1741887741882,0.1711,80191.0,80186.0,0.58000956]
[1741887742085,0.27010429,80193.0,80192.0,0.1247231]
[1741887742086,0.23482839,80193.0,80192.0,0.1247231]
[1741887742286,0.24726581,80193.0,80192.0,0.13803266]
[1741887742488,0.40526581,80193.0,80192.0,0.13803266]
[1741887742684,0.40526581,80193.0,80192.0,0.01297741]
[1741887743285,0.29516152,80193.0,80192.0,0.13770051]
[1741887744082,0.158,80193.0,80192.0,0.13770051]
[1741887744294,0.2827216,80193.0,80192.0,0.13770051]
[1741887744491,0.2827216,80193.0,80192.0,0.46920051]
[1741887744690,0.2827216,80193.0,80192.0,0.46918603]
[1741887745476,0.11010429,80194.0,80192.0,0.52918603]
[1741887745688,0.00018701,80202.0,80201.0,0.1247091]
[1741887745985,0.22002886,80210.0,80209.0,0.1246967]
[1741887746284,0.1697,80211.0,80209.0,0.15834516]
[1741887746485,0.25718318,80219.0,80210.0,0.13765803]
[1741887746688,0.25718318,80219.0,80211.0,0.46625653]
[1741887746883,0.25718318,80219.0,80218.0,0.1246827]
[1741887747083,0.25718318,80219.0,80218.0,0.28912563]
[1741887747679,0.38186428,80219.0,80218.0,0.61772563]
[1741887748083,0.38186428,80219.0,80218.0,0.17916293]
[1741887748289,0.87576428,80219.0,80218.0,0.1662]
[1741887748996,0.91688372,80219.0,80218.0,0.1662]
[1741887749384,0.91688372,80219.0,80208.0,0.1246967]
[1741887749385,0.1246982,80209.0,80208.0,0.1246967]
[1741887749593,0.1246982,80209.0,80208.0,0.18496914]
[1741887749787,0.1246982,80209.0,80208.0,0.1723]
[1741887749985,0.4569982,80209.0,80208.0,0.1723]
[1741887750192,0.4569982,80209.0,80208.0,0.2969982]
[1741887750494,0.1247045,80204.0,80203.0,0.12489301]
[1741887750793,0.1247045,80204.0,80203.0,0.13751274]
[1741887750994,0.1247045,80204.0,80203.0,0.00018701]
[1741887751298,0.1247045,80204.0,80203.0,0.12489301]
[1741887751493,0.1247045,80204.0,80203.0,0.00018701]
[1741887751988,0.1247045,80204.0,80203.0,0.12489301]
[1741887752294,0.13732036,80204.0,80203.0,0.12489301]
[1741887752690,0.13732036,80204.0,80203.0,0.29109301]
[1741887753381,0.13732036,80204.0,80203.0,0.16638701]
[1741887753681,0.13732036,80204.0,80203.0,0.30370475]
[1741887753885,0.13732036,80204.0,80203.0,0.29109301]
[1741887754094,0.13732036,80204.0,80203.0,0.30370474]
[1741887754284,0.13732036,80204.0,80203.0,0.29109301]
[1741887754590,0.13732036,80204.0,80203.0,0.30372242]
[1741887754797,0.13732036,80204.0,80203.0,0.29109301]
[1741887755390,0.13732036,80204.0,80203.0,0.30372326]
[1741887756293,0.13732036,80204.0,80203.0,0.30371999]
[1741887756486,0.13732036,80204.0,80203.0,0.17901399]
[1741887756888,0.01261586,80204.0,80173.0,1.08724]
[1741887757199,0.1247324,80186.0,80185.0,0.25187062]
[1741887757500,0.13760111,80186.0,80185.0,0.25187062]
[1741887758191,0.13760111,80186.0,80185.0,0.25]
[1741887758394,0.13760111,80186.0,80177.0,0.00018701]
[1741887758395,0.90417879,80186.0,80177.0,0.00018701]
[1741887758693,0.1247558,80171.0,80170.0,0.22289756]
[1741887758994,0.124762,80167.0,80157.0,0.1734]
[1741887759196,0.16592403,80167.0,80166.0,0.28823113]
[1741887759496,0.16592403,80167.0,80157.0,0.1734]
[1741887759497,0.1247698,80162.0,80157.0,0.1734]
[1741887759790,0.16593183,80162.0,80157.0,0.1734]
[1741887760199,0.16593183,80162.0,80157.0,0.2981768]
[1741887760403,0.33373183,80162.0,80157.0,0.2981768]
[1741887760586,0.33373183,80162.0,80157.0,0.1734]
[1741887760791,0.33373183,80162.0,80152.0,0.51629873]
[1741887760985,0.34670186,80162.0,80157.0,0.1734]
[1741887761389,0.30553983,80162.0,80161.0,0.56671893]
[1741887761701,0.0623838,80164.0,80161.0,0.44194763]
[1741887761901,0.2910698,80162.0,80161.0,0.44194763]
[1741887762096,0.1247745,80160.0,80159.0,0.1247734]
[1741887762293,0.1247745,80159.0,80158.0,0.2943758]
[1741887762600,0.2910745,80159.0,80158.0,0.2943758]
[1741887762792,0.1663,80159.0,80158.0,0.2943758]
[1741887762985,0.0623863,80161.0,80158.0,0.2319874]
[1741887763186,0.1247776,80157.0,80156.0,0.007]
[1741887764792,0.1248009,80142.0,80141.0,0.00187163]
[1741887765391,0.1248274,80125.0,80124.0,0.0624138]
[1741887765999,0.1248213,80131.0,80128.0,0.0624113]
[1741887766197,0.1248213,80131.0,80130.0,0.1248181]
[1741887766497,0.1198213,80131.0,80130.0,0.1248181]
[1741887766893,0.1198213,80131.0,80129.0,0.1598]
[1741887766894,0.00018713,80133.0,80131.0,0.1248181]
[1741887767199,0.1248006,80143.0,80142.0,0.1247985]
[1741887767402,0.1514,80149.0,80132.0,0.1636]
[1741887767590,0.3284,80148.0,80137.0,0.062404]
[1741887767795,0.1248046,80140.0,80139.0,0.1248027]
[1741887767990,0.1248034,80142.0,80141.0,0.1248008]
[1741887768200,0.1248093,80138.0,80137.0,0.1248077]
[1741887768798,0.01287271,80142.0,80141.0,0.1248025]
[1741887768995,0.1248009,80142.0,80139.0,0.0624021]
[1741887769198,0.169,80148.0,80133.0,0.00018713]
[1741887769500,0.1247978,80145.0,80139.0,0.0624026]
[1741887769701,0.00018713,80150.0,80147.0,0.1247931]
[1741887770005,0.00018713,80150.0,80140.0,0.062402]